bitfinex/quotes_SOLUSD_20250118
["timestamp","ask_amount","ask_price","bid_price","bid_amount"]
[1737172653372,17.04240577,220.93,220.83,6.66]
[1737172654295,15.8392,220.97,220.84,17.04240577]
[1737172654489,17.04240577,220.94,220.83,6.66]
[1737172654869,17.04240577,220.92,220.8,17.04240577]
[1737172655074,17.04240577,220.88,220.81,6.66]
[1737172655677,17.04240577,220.88,220.82,6.66]
[1737172655875,17.04240577,220.86,220.82,6.66]
[1737172656112,17.04240577,220.84,220.82,6.66]
[1737172656416,4.5279,220.85,220.82,6.66]
[1737172658031,17.04240577,220.84,220.73,12.1922]
[1737172658217,17.04240577,220.84,220.74,6.64]
[1737172658419,4.5283,220.83,220.74,6.64]
[1737172658610,4.5283,220.83,220.82,0.03]
[1737172660732,17.04240577,220.88,220.82,0.03]
[1737172660940,4.5271,220.89,220.82,0.03]
[1737172662307,4.5267,220.91,220.82,0.03]
[1737172662927,17.04240577,220.9,220.82,0.03]
[1737172663929,17.04240577,220.88,220.82,0.03]
[1737172664343,22.626,220.99,220.82,0.03]
[1737172664640,17.04240577,220.91,220.82,0.03]
[1737172664820,17.04240577,220.91,220.82,20.03]
[1737172665739,17.04240577,220.91,220.82,0.03]
[1737172666654,4.5269,220.9,220.83,6.64]
[1737172667422,4.5269,220.9,220.83,23.68240577]
[1737172667617,4.5269,220.9,220.83,6.64]
[1737172667823,21.56930577,220.9,220.83,6.64]
[1737172668241,17.04240577,220.92,220.83,6.64]
[1737172668546,11.3138,220.97,220.83,6.64]
[1737172668547,17.04240577,220.9,220.83,6.64]
[1737172670729,17.04240577,220.92,220.83,6.64]
[1737172673131,4.5267,220.91,220.83,6.64]
[1737172673762,17.04240577,220.88,220.82,0.03]
[1737172674058,17.04240577,220.88,220.82,6.67]
[1737172674354,4.5267,220.91,220.82,6.67]
[1737172674546,17.04240577,220.89,220.82,6.67]
[1737172675244,4.5273,220.88,220.82,6.67]
[1737172675443,4.5271,220.9,220.82,6.67]
[1737172678057,17.04240577,220.89,220.82,6.67]
[1737172678551,4.5271,220.9,220.83,17.04240577]
[1737172679441,22.6283,220.97,220.83,17.04240577]
[1737172679633,17.04240577,220.95,220.83,17.04240577]
[1737172681654,15.8413,220.94,220.83,17.04240577]
[1737172682542,17.04240577,220.9,220.82,0.03]
[1737172682753,17.04240577,220.92,220.82,0.03]
[1737172683676,15.8435,220.91,220.82,0.03]
[1737172685044,11.3149,220.95,220.82,0.03]
[1737172685250,17.04240577,220.85,220.82,0.03]
[1737172685754,17.04240577,220.83,220.73,12.1922]
[1737172685956,17.04240577,220.79,220.73,12.1922]
[1737172686619,4.5281,220.84,220.76,17.04240577]
[1737172686795,17.04240577,220.87,220.78,17.04240577]
[1737172686958,1.86584694,220.98,220.76,17.04240577]
[1737172686959,17.04240577,220.85,220.76,17.04240577]
[1737172687547,4.5281,220.84,220.76,17.04240577]
[1737172688061,4.5276,220.87,220.78,17.04240577]
[1737172688478,21.57000577,220.87,220.76,37.04240577]
[1737172689256,17.04240577,220.85,220.76,37.04240577]
[1737172689474,17.04240577,220.85,220.77,20.0]
[1737172689655,21.57040577,220.85,220.76,37.04240577]
[1737172689976,21.57040577,220.85,220.76,20.0]
[1737172690383,17.04240577,220.83,220.73,12.1922]
[1737172690680,17.04240577,220.83,220.73,18.8322]
[1737172691055,17.04240577,220.81,220.73,12.1922]
[1737172691255,15.8479,220.85,220.73,12.1922]
[1737172691503,17.04240577,220.83,220.74,17.04240577]
[1737172691778,36.2382,220.97,220.74,17.04240577]
[1737172691779,17.04240577,220.92,220.81,37.04240577]
[1737172692886,4.5267,220.91,220.81,37.04240577]
[1737172693193,17.04240577,220.89,220.82,20.0]
[1737172693356,21.56910577,220.91,220.82,20.0]
[1737172693561,21.56910577,220.91,220.81,37.04240577]
[1737172693868,17.04240577,220.89,220.79,17.04240577]
[1737172694079,17.04240577,220.89,220.79,6.64]
[1737172694587,17.04240577,220.89,220.79,23.68240577]
[1737172694955,4.5273,220.88,220.79,23.68240577]
[1737172696691,4.5273,220.88,220.79,6.64]
[1737172697492,4.5273,220.88,220.77,17.04240577]
[1737172697693,4.5273,220.88,220.78,6.64]
[1737172698408,4.5273,220.88,220.79,17.04240577]
[1737172699506,10.65517519,220.89,220.78,6.64]
[1737172700101,10.65517519,220.89,220.78,17.29517519]
[1737172701182,10.65517519,220.89,220.78,21.82437519]
[1737172701704,4.5273,220.88,220.78,21.82437519]
[1737172701905,4.5273,220.88,220.78,17.29517519]
[1737172702203,4.5273,220.88,220.81,20.0]
[1737172702607,4.5273,220.88,220.78,21.82447519]
[1737172702985,4.5273,220.88,220.81,20.0]
[1737172704579,4.5267,220.91,220.83,20.0]
[1737172704786,10.65517519,220.9,220.8,10.65517519]
[1737172704993,10.65517519,220.88,220.79,4.529]
[1737172705291,4.5275,220.87,220.79,4.529]
[1737172705484,10.65517519,220.89,220.79,4.529]
[1737172705686,15.18237519,220.89,220.79,4.529]
[1737172706591,15.18237519,220.89,220.81,20.0]
[1737172706796,15.18237519,220.89,220.81,24.5287]
[1737172707210,4.5272,220.89,220.81,24.5287]
[1737172707511,10.65517519,220.92,220.83,20.0]
[1737172708291,10.65517519,220.92,220.8,10.65517519]
[1737172708506,10.65517519,220.88,220.78,6.67]
[1737172708709,10.65517519,220.88,220.79,6.64]
[1737172709009,10.65517519,220.82,220.78,0.03]
[1737172709201,0.063,220.95,220.78,0.03]
[1737172709409,10.65517519,220.84,220.78,0.03]
[1737172709610,10.65517519,220.86,220.79,20.0]
[1737172709916,10.65517519,220.88,220.78,10.68517519]
[1737172710913,0.063,220.95,220.8,10.65517519]
[1737172710914,4.5275,220.87,220.8,10.65517519]
[1737172711430,4.5275,220.87,220.78,10.68517519]
[1737172713926,4.5275,220.87,220.78,15.21447519]
[1737172715532,0.063,220.95,220.78,15.21447519]
[1737172715715,10.65517519,220.89,220.78,15.21447519]
[1737172716711,4.5273,220.88,220.78,15.21447519]
[1737172717630,10.65517519,220.91,220.78,15.21447519]
[1737172718224,10.65517519,220.91,220.8,10.65517519]
[1737172718941,4.5269,220.9,220.8,10.65517519]
[1737172721844,10.65517519,220.89,220.8,10.65517519]
[1737172722441,15.9036,220.95,220.8,10.65517519]
[1737172722625,10.65517519,220.91,220.8,10.65517519]
[1737172722939,15.9036,220.95,220.8,10.65517519]
[1737172723108,15.9036,220.95,220.78,0.03]
[1737172723109,10.65517519,220.94,220.82,10.65517519]
[1737172724028,4.5263,220.93,220.84,10.65517519]
[1737172725054,10.65517519,220.92,220.82,10.65517519]
[1737172725225,15.8421,220.93,220.84,10.65517519]
[1737172726423,15.8421,220.93,220.82,30.65517519]
[1737172728754,15.8421,220.93,220.82,35.18367519]
[1737172731263,4.5263,220.93,220.82,35.18367519]
[1737172731557,4.5263,220.93,220.83,26.81632708]
[1737172732164,4.5263,220.93,220.88,6.81632708]
[1737172732364,0.063,220.95,220.87,10.8471]
[1737172732535,4.5889,220.95,220.87,10.8471]
[1737172733242,4.5889,220.95,220.87,17.66342708]
[1737172733458,0.063,220.95,220.87,21.49437616]
[1737172734063,10.64727616,220.89,220.78,6.98026611]
[1737172734241,11.1756,220.95,220.78,6.98026611]
[1737172734242,10.64727616,220.85,220.78,6.98026611]
[1737172734437,11.1756,220.95,220.81,10.64727616]
[1737172734663,0.063,220.95,220.91,10.64727616]
[1737172735140,10.64727616,221.04,220.93,10.64727616]
[1737172735337,11.3098,221.05,220.93,10.64727616]
[1737172735652,10.64727616,221.04,220.93,10.64727616]
[1737172736467,10.64727616,221.0,220.84,11.3202]
[1737172736774,10.64727616,221.0,220.89,10.64727616]
[1737172736974,10.64727616,221.02,220.91,10.64727616]
[1737172737348,10.64727616,221.02,220.87,6.62]
[1737172737549,10.64727616,221.0,220.9,10.64727616]
[1737172738275,10.64727616,221.0,220.89,4.5271]
[1737172738970,4.525,220.99,220.89,4.5271]
[1737172739269,10.64727616,220.98,220.89,4.5271]
[1737172739767,15.8341,221.04,220.89,15.17437616]
[1737172739768,10.64727616,221.0,220.89,15.17437616]
[1737172739963,10.64727616,220.98,220.87,41.79467616]
[1737172740370,10.64727616,220.96,220.87,20.0]
[1737172740578,10.64727616,220.96,220.88,6.62]
[1737172740954,10.64727616,220.99,220.88,17.26727616]
[1737172741273,10.64727616,220.99,220.89,4.5271]
[1737172741579,10.64727616,220.99,220.91,20.0]
[1737172742279,10.64727616,221.01,220.91,20.0]
[1737172742585,4.5234,221.07,220.91,20.0]
[1737172742586,10.64727616,220.99,220.91,20.0]
[1737172743365,15.17237616,220.99,220.91,20.0]
[1737172743683,4.5251,220.99,220.88,6.62]
[1737172743890,10.64727616,220.96,220.88,6.62]
[1737172744375,10.64727616,220.92,220.88,6.62]
[1737172744563,10.64727616,220.9,220.81,48.84]
[1737172744763,10.64727616,220.88,220.81,48.84]
[1737172744975,10.64727616,220.83,220.78,0.03]
[1737172745485,10.64727616,220.85,220.78,0.03]
[1737172745988,10.64727616,220.87,220.78,0.03]
[1737172746287,10.64727616,220.83,220.78,0.03]
[1737172746493,20.0,220.94,220.78,0.03]
[1737172746494,20.0,220.84,220.78,0.03]
[1737172746672,10.64727616,220.8,220.78,0.03]
[1737172746994,10.64727616,220.84,220.78,0.03]
[1737172748285,10.64727616,220.8,220.78,0.03]
[1737172748674,10.64727616,220.82,220.78,0.03]
[1737172750161,4.5283,220.84,220.78,0.03]
[1737172750376,10.64727616,220.82,220.78,0.03]
[1737172750666,10.64727616,220.8,220.78,0.03]
[1737172751488,15.17587616,220.82,220.78,0.03]
[1737172751695,10.64727616,220.82,220.78,0.03]
[1737172751875,11.3192,220.87,220.78,0.03]
[1737172752198,10.64727616,220.8,220.78,0.03]
[1737172752358,10.64727616,220.82,220.78,0.03]
[1737172752761,15.17557616,220.84,220.78,0.03]
[1737172753895,10.64727616,220.8,220.78,0.03]
[1737172754387,10.64727616,220.82,220.78,0.03]
[1737172754711,30.64727616,220.79,220.78,0.0001]
[1737172754860,13.61,220.8,220.61,6.95026611]
[1737172755061,10.64727616,220.73,220.61,17.59754227]
[1737172755275,10.64727616,220.78,220.67,10.64727616]
[1737172755697,38.4895,220.84,220.66,11.1153]
[1737172755698,10.64727616,220.74,220.66,11.1153]
[1737172755994,38.4895,220.84,220.59,11.3628]
[1737172755995,10.64727616,220.7,220.59,21.79257616]
[1737172756367,10.64727616,220.7,220.61,10.64727616]
[1737172756572,10.64727616,220.68,220.59,21.79257616]
[1737172756771,10.64727616,220.68,220.6,6.6]
[1737172757290,1.81036619,220.8,220.6,6.6]
[1737172757291,10.64727616,220.66,220.6,6.6]
[1737172757472,10.64727616,220.74,220.59,0.03]
[1737172757473,10.64727616,220.62,220.59,0.03]
[1737172757987,10.64727616,220.66,220.59,0.03]
[1737172758194,10.64727616,220.68,220.59,0.03]
[1737172759073,22.40127616,220.6,220.59,0.0001]
[1737172759270,20.0,220.57,220.37,11.7732]
[1737172759485,10.64727616,220.46,220.37,11.7732]
[1737172759688,20.0,220.55,220.37,11.7732]
[1737172759994,4.5355,220.48,220.39,24.60540835]
[1737172760172,4.5355,220.48,220.37,22.42047616]
[1737172760372,10.64727616,220.51,220.39,10.64727616]
[1737172760590,10.64727616,220.51,220.41,10.64727616]
[1737172760894,10.64727616,220.53,220.42,6.6]
[1737172761068,22.6665,220.59,220.42,6.6]
[1737172761069,10.64727616,220.59,220.49,10.64727616]
[1737172761274,4.5329,220.61,220.51,10.64727616]
[1737172761789,14.4361,220.67,220.42,7.28035362]
[1737172761790,10.64727616,220.64,220.53,10.64727616]
[1737172762095,10.64727616,220.66,220.55,10.64727616]
[1737172762291,11.754,220.8,220.65,10.64727616]
[1737172762500,10.64727616,220.76,220.65,10.64727616]
[1737172762997,10.64727616,220.67,220.54,6.62]
[1737172763289,10.64727616,220.65,220.59,0.03]
[1737172763694,10.64727616,220.74,220.59,0.03]
[1737172763695,10.64727616,220.63,220.59,0.03]
[1737172764196,4.5326,220.62,220.59,0.03]
[1737172765695,10.64727616,220.63,220.59,0.03]
[1737172766192,10.64727616,220.65,220.59,0.03]
[1737172767077,15.17937616,220.65,220.59,0.03]
[1737172767391,15.17897616,220.67,220.59,0.03]
[1737172767701,10.64727616,220.71,220.6,10.64727616]
[1737172768292,15.17807616,220.71,220.61,4.5328]
[1737172769093,10.64727616,220.69,220.59,20.03]
[1737172769297,10.64727616,220.7,220.6,6.6]
[1737172770076,4.5309,220.71,220.59,0.03]
[1737172770077,11.754,220.71,220.59,0.03]
[1737172770279,10.64727616,220.64,220.59,0.03]
[1737172770488,10.64727616,220.65,220.59,0.03]
[1737172770880,10.64727616,220.69,220.59,0.03]
[1737172771081,10.64727616,220.69,220.6,6.6]
[1737172771293,10.64727616,220.69,220.59,0.03]
[1737172771505,10.64727616,220.69,220.6,6.6]
[1737172771703,4.531,220.7,220.6,17.24727616]
[1737172772087,10.64727616,220.71,220.6,17.24727616]
[1737172772288,10.64727616,220.67,220.59,0.03]
[1737172772513,10.64727616,220.65,220.59,0.03]
[1737172773400,10.64727616,220.67,220.59,0.03]
[1737172774306,10.64727616,220.71,220.59,10.67727616]
[1737172774695,10.64727616,220.69,220.59,10.67727616]
[1737172774895,10.64727616,220.66,220.59,0.03]
[1737172775099,4.5307,220.72,220.59,0.03]
[1737172775100,10.64727616,220.7,220.59,15.21037616]
[1737172775297,10.64727616,220.7,220.59,4.5631]
[1737172775515,10.64727616,220.68,220.59,4.5631]
[1737172776210,11.754,220.78,220.6,10.64727616]
[1737172776211,10.64727616,220.7,220.6,10.64727616]
[1737172776907,10.64727616,220.72,220.63,20.0]
[1737172777097,10.64727616,220.76,220.64,10.64727616]
[1737172777413,10.64727616,220.76,220.65,11.1896]
[1737172777594,4.5267,220.91,220.72,10.64727616]
[1737172777801,10.64727616,220.84,220.74,10.64727616]
[1737172778000,10.64727616,220.86,220.76,10.64727616]
[1737172778198,10.64727616,220.79,220.67,4.5316]
[1737172778399,10.64727616,220.79,220.69,10.9461]
[1737172778601,10.64727616,220.77,220.69,10.9461]
[1737172778809,10.64727616,220.75,220.69,10.9461]
[1737172778993,10.64727616,220.77,220.69,10.9461]
[1737172779194,10.64727616,220.79,220.69,10.9461]
[1737172779394,10.64727616,220.79,220.67,26.50797616]
[1737172779593,10.64727616,220.79,220.68,15.8442]
[1737172780010,10.64727616,220.79,220.72,20.0]
[1737172780216,10.64727616,220.81,220.72,20.0]
[1737172780419,10.64727616,220.81,220.73,4.5304]
[1737172780719,10.64727616,220.77,220.69,4.531]
[1737172780905,10.64727616,220.77,220.7,6.6]
[1737172781636,10.64727616,220.71,220.65,11.1896]
[1737172781820,10.64727616,220.75,220.65,15.7214]
[1737172783115,4.5277,220.86,220.67,10.64727616]
[1737172783317,10.64727616,220.68,220.59,0.03]
[1737172783622,10.64727616,220.71,220.6,10.64727616]
[1737172783808,10.64727616,220.69,220.59,4.5632]
[1737172784728,10.64727616,220.65,220.59,0.03]
[1737172784917,10.64727616,220.63,220.59,0.03]
[1737172785102,10.64727616,220.65,220.59,0.03]
[1737172785293,10.64727616,220.67,220.59,0.03]
[1737172785507,39.0252,220.79,220.6,10.64727616]
[1737172785508,10.64727616,220.71,220.6,10.64727616]
[1737172785698,10.64727616,220.73,220.64,10.64727616]
[1737172785898,10.64727616,220.77,220.66,10.64727616]
[1737172786127,10.64727616,220.75,220.66,10.64727616]
[1737172786312,10.64727616,220.75,220.64,10.64727616]
[1737172786501,10.64727616,220.71,220.62,11.1896]
[1737172786914,10.64727616,220.71,220.63,4.5324]
[1737172787101,10.64727616,220.73,220.63,4.5324]
[1737172787315,10.64727616,220.71,220.62,11.1896]
[1737172787500,10.64727616,220.71,220.62,15.7222]
[1737172787708,10.64727616,220.71,220.62,26.36947616]
[1737172788112,10.64727616,220.73,220.62,26.36947616]
[1737172788313,4.5296,220.77,220.66,10.64727616]
[1737172788314,10.64727616,220.77,220.66,10.64727616]
[1737172788641,10.64727616,220.73,220.64,10.64727616]
[1737172788923,10.64727616,220.72,220.62,15.7222]
[1737172789162,10.64727616,220.72,220.62,26.36947616]
[1737172790304,10.64727616,220.63,220.59,0.03]
[1737172790504,20.0,220.57,220.44,4.5362]
[1737172790707,10.6967,220.66,220.42,21.90017616]
[1737172791009,10.64727616,220.56,220.44,10.64727616]
[1737172791209,10.64727616,220.58,220.48,10.64727616]
[1737172791719,10.64727616,220.6,220.48,10.64727616]
[1737172791918,10.64727616,220.6,220.5,10.64727616]
[1737172792425,10.64727616,220.6,220.51,11.1349]
[1737172793402,10.64727616,220.6,220.42,35.73633864]
[1737172793403,17.09690707,220.55,220.43,4.5365]
[1737172793720,17.09690707,220.44,220.33,21.63540707]
[1737172793911,17.09690707,220.46,220.33,17.09690707]
[1737172794119,17.09690707,220.44,220.34,4.5383]
[1737172794304,20.0,220.53,220.36,4.5679]
[1737172794510,17.09690707,220.47,220.36,4.5679]
[1737172795735,17.09690707,220.47,220.38,20.0]
[1737172795909,22.6665,220.59,220.36,4.5679]
[1737172795910,17.09690707,220.4,220.36,0.03]
[1737172796105,17.09690707,220.38,220.36,0.03]
[1737172796825,17.09690707,220.4,220.36,0.03]
[1737172797015,17.09690707,220.42,220.36,0.03]
[1737172797229,17.09690707,220.44,220.36,0.03]
[1737172797834,21.63280707,220.47,220.36,17.12690707]
[1737172798024,17.09690707,220.47,220.36,17.12690707]
[1737172798410,4.5356,220.48,220.38,17.09690707]
[1737172798609,17.09690707,220.49,220.38,17.09690707]
[1737172798834,21.63230707,220.49,220.38,17.09690707]
[1737172799240,17.09690707,220.49,220.38,17.09690707]
[1737172799834,17.09690707,220.49,220.38,21.63440707]
[1737172800035,17.09690707,220.51,220.36,0.03]
[1737172800222,17.09690707,220.38,220.36,0.03]
[1737172801310,17.09690707,220.4,220.36,0.03]
[1737172801738,17.09690707,220.44,220.36,0.03]
[1737172801940,4.5365,220.43,220.36,0.03]
[1737172802827,4.5363,220.45,220.36,0.03]
[1737172803136,4.5359,220.47,220.37,17.09690707]
[1737172803330,4.5359,220.47,220.36,0.03]
[1737172803331,17.09690707,220.39,220.36,0.03]
[1737172803929,15.8753,220.47,220.36,0.03]
[1737172803930,17.09690707,220.41,220.36,0.03]
[1737172804148,17.09690707,220.48,220.36,17.12690707]
[1737172804435,17.09690707,220.54,220.42,17.09690707]
[1737172804640,4.5332,220.59,220.44,17.09690707]
[1737172804822,17.09690707,220.57,220.44,17.09690707]
[1737172805022,17.09690707,220.61,220.48,17.09690707]
[1737172805239,17.09690707,220.61,220.5,17.09690707]
[1737172805439,17.09690707,220.58,220.4,0.68017526]
[1737172805611,17.09690707,220.48,220.36,17.12690707]
[1737172805809,4.532,220.65,220.46,17.09690707]
[1737172806015,17.09690707,220.62,220.48,17.09690707]
[1737172806233,17.09690707,220.62,220.5,17.09690707]
[1737172806415,17.09690707,220.64,220.52,17.09690707]
[1737172806615,21.62800707,220.7,220.57,17.09690707]
[1737172806847,28.10826154,220.72,220.59,17.09690707]
[1737172807147,22.22077705,221.06,220.74,24.03573641]
[1737172807452,17.096907,221.05,220.88,10.64313641]
[1737172807741,17.096907,221.05,220.95,17.09690707]
[1737172807931,17.09690707,220.96,220.82,17.09690707]
[1737172808131,17.09690707,220.85,220.74,10.7155]
[1737172808316,17.09690707,220.85,220.63,3.35624385]
[1737172808317,15.8377,220.99,220.8,6.95026611]
[1737172808646,13.6,220.98,220.8,6.611e-05]
[1737172808846,40.85,220.96,220.77,9.83e-05]
[1737172809045,13.6,220.94,220.73,7.206e-05]
[1737172809245,14.6527,220.95,220.62,4.5325]
[1737172809426,27.7276338,220.87,220.75,27.7276338]
[1737172809752,61.0885,220.99,220.71,20.0]
[1737172809753,15.8377,220.99,220.71,20.0]
[1737172809921,0.063,221.0,220.76,20.0]
[1737172810118,0.063,221.0,220.76,30.9163383]
[1737172810315,0.063,221.0,220.8,20.0]
[1737172810621,0.063,221.0,220.84,20.0]
[1737172810849,0.063,221.0,220.88,20.0]
[1737172811027,0.063,221.0,220.92,20.0]
[1737172811221,0.063,221.0,220.92,10.23723771]
[1737172811449,0.063,221.0,220.89,27.7276338]
[1737172811450,27.7906338,221.0,220.89,27.7276338]
[1737172811668,0.063,221.0,220.93,27.7276338]
[1737172811833,0.063,221.0,220.95,27.7276338]
[1737172812231,0.063,221.0,220.93,27.7276338]
[1737172812431,20.0,220.98,220.88,7.28]
[1737172812737,20.0,220.98,220.88,35.0076338]
[1737172812933,27.7276338,220.95,220.88,7.28]
[1737172813245,27.7276338,220.93,220.81,27.7276338]
[1737172813546,20.0,220.92,220.83,27.7276338]
[1737172814044,20.0,220.86,220.77,15.53826078]
[1737172814348,27.7276338,220.79,220.68,27.7276338]
[1737172814528,27.7276338,220.87,220.75,27.7276338]
[1737172814728,13.6,220.87,220.6,17.096907]
[1737172815048,13.6,220.84,220.58,4.5333]
[1737172815347,20.0,220.88,220.55,18.125542]
[1737172815556,20.0,220.88,220.57,4.5335]
[1737172815756,20.0,220.88,220.55,18.125542]
[1737172816056,27.7276338,220.77,220.65,27.7276338]
[1737172816229,27.7276338,220.73,220.61,27.7276338]
[1737172817328,13.6,220.85,220.59,0.03]
[1737172817329,47.7276338,220.66,220.59,0.03]
[1737172817534,27.7276338,220.63,220.59,0.03]
[1737172817844,41.3276338,220.74,220.59,0.03]
[1737172817845,27.7276338,220.6,220.59,0.03]
[1737172818049,27.7276338,220.62,220.59,0.03]
[1737172818360,27.7276338,220.64,220.59,0.03]
[1737172818544,27.7276338,220.66,220.59,0.03]
[1737172818747,11.3269,220.72,220.59,0.03]
[1737172818748,47.7276338,220.6,220.59,0.03]
[1737172820054,47.7276338,220.6,220.45,17.65921]
[1737172820363,27.7276338,220.46,220.36,0.03]
[1737172820943,15.8664,220.59,220.36,0.03]
[1737172820944,27.7276338,220.48,220.37,4.5378]
[1737172821459,27.7276338,220.52,220.4,27.7276338]
[1737172821653,27.7276338,220.48,220.37,4.5378]
[1737172821843,4.5332,220.59,220.36,18.171001]
[1737172821844,27.7276338,220.44,220.36,18.171001]
[1737172822043,27.7276338,220.44,220.36,0.03]
[1737172822237,27.7276338,220.46,220.36,0.03]
[1737172822562,27.7276338,220.37,220.36,0.03]
[1737172823157,13.6,220.34,220.19,0.03]
[1737172823363,27.7276338,220.2,220.19,0.03]
[1737172823544,47.7276338,220.18,220.04,0.03]
[1737172823739,47.7276338,220.18,220.05,4.5444]
[1737172823740,27.7276338,220.14,220.05,4.5444]
[1737172824058,27.7276338,220.14,220.04,0.03]
[1737172824250,4.5418,220.18,220.04,0.03]
[1737172824450,27.7276338,220.14,220.04,0.03]
[1737172824858,4.5418,220.18,219.96,4.5762]
[1737172825164,27.7276338,219.98,219.96,0.03]
[1737172825357,27.7276338,219.98,219.96,0.0001]
[1737172825850,27.7276338,219.98,219.85,4.5485]
[1737172826160,27.7276338,219.94,219.84,0.03]
[1737172826466,4.5469,219.93,219.84,0.03]
[1737172826965,47.7276338,219.92,219.84,0.03]
[1737172827137,88.5776338,219.92,219.91,0.0001]
[1737172827339,88.5776338,219.92,219.84,0.03]
[1737172827340,47.7276338,219.92,219.84,0.0001]
[1737172827545,27.7276338,219.85,219.84,0.0001]
[1737172827748,20.0,219.82,219.68,27.7276338]
[1737172827938,15.9141,219.93,219.59,2.6575]
[1737172827939,27.7276338,219.84,219.72,27.7276338]
[1737172828260,27.7276338,219.86,219.76,27.7276338]
[1737172828462,11.8114594,220.06,219.85,27.7276338]
[1737172828664,4.545,220.03,219.8,27.7276338]
[1737172828843,38.6311,220.03,219.73,4.5509]
[1737172829043,15.907,220.03,219.73,4.5509]
[1737172829471,20.0,219.99,219.73,4.5509]
[1737172829757,15.907,220.03,219.73,24.5509]
[1737172829964,32.2726338,220.03,219.92,27.7276338]
[1737172830147,32.2720338,220.05,219.92,27.7276338]
[1737172830345,4.5439,220.08,219.98,27.7276338]
[1737172830540,4.5439,220.08,220.0,27.7276338]
[1737172830761,4.5439,220.08,219.98,27.7276338]
[1737172831156,27.7276338,220.05,219.94,27.7276338]
[1737172831354,27.7276338,220.03,219.92,37.5725338]
[1737172831567,27.7276338,220.05,219.94,27.7276338]
[1737172831761,27.7276338,220.07,219.96,27.7276338]
[1737172831954,20.0,219.95,219.86,76.7276338]
[1737172832157,27.7276338,219.95,219.84,27.7276338]
[1737172832467,38.5991,220.28,219.94,27.7276338]
[1737172832641,27.7276338,220.02,219.87,4.5481]
[1737172832844,27.7276338,220.02,219.9,27.7276338]
[1737172833059,27.7276338,220.04,219.92,27.7276338]
[1737172833270,27.7276338,220.0,219.87,32.2757338]
[1737172833481,27.7276338,220.03,219.92,27.7276338]
[1737172834140,27.7276338,220.05,219.92,27.7276338]
[1737172834645,27.7276338,220.12,220.0,0.03]
[1737172834852,27.7276338,220.12,220.01,27.7276338]
[1737172835171,20.0,220.09,220.01,27.7276338]
[1737172835467,20.0,220.09,220.0,0.03]
[1737172835637,20.0,220.09,220.01,27.7276338]
[1737172837854,11.3566,220.14,220.06,27.7276338]
[1737172838166,4.5392,220.3,220.12,27.7276338]
[1737172838375,15.8736,220.49,220.22,226.38099586]
[1737172838671,15.865,220.61,220.35,20.0]
[1737172838970,38.5294,220.61,220.24,10.459]
[1737172839180,38.5294,220.61,220.18,2.539]
[1737172839181,16.0954,220.59,220.18,2.539]
[1737172839363,27.7276338,220.49,220.22,50.03953318]
[1737172839668,2.4954,220.59,220.22,50.03953318]
[1737172839669,27.7276338,220.59,220.48,27.7276338]
[1737172839862,4.532,220.65,220.39,8.08]
[1737172840050,15.8621,220.65,220.39,12.6172]
[1737172840259,4.532,220.65,220.42,20.0]
[1737172840441,4.532,220.65,220.37,10.459]
[1737172840442,40.88,220.64,220.37,10.459]
[1737172840847,20.0,220.57,220.37,14.9966]
[1737172841368,27.7276338,220.55,220.43,27.7276338]
[1737172841571,27.7276338,220.45,220.33,27.7276338]
[1737172841771,22.6603,220.65,220.37,27.7276338]
[1737172841964,27.7276338,220.48,220.37,27.7276338]
[1737172842170,33.9981,220.6,220.33,27.7276338]
[1737172842473,27.7276338,220.48,220.37,27.7276338]
[1737172842675,4.5322,220.64,220.47,27.7276338]
[1737172842856,27.7276338,220.56,220.43,27.7276338]
[1737172843054,27.7276338,220.56,220.45,27.7276338]
[1737172843256,27.7276338,220.62,220.5,27.7276338]
[1737172843775,27.7276338,220.54,220.42,27.7276338]
[1737172843961,27.7276338,220.58,220.46,27.7276338]
[1737172844161,27.7276338,220.54,220.42,27.7276338]